[Event "Silver Lake Festival 2022"]
[Site "Veliko Gradiste"]
[Date "2022.06.24"]
[Round "7.11"]
[White "Arias Gaviria, Mario Alexis"]
[Black "Papaioannou, Dimitrios"]
[Result "1-0"]
[ECO "D27"]
[WhiteElo "2181"]
[BlackElo "2078"]
[Annotator "TA"]
[PlyCount "64"]
[EventDate "2022.06.16"]
[EventType "swiss"]
[EventCountry "SRB"]
[SourceTitle "playchess.com"]
[Source "ChessBase"]
[SourceQuality "1"]
[TimeControl "5400+30"]

{[%evp 19,64,0,2,0,0,0,0,-14,-19,-12,-14,-31,-26,-77,-79,-76,-61,-102,-104,-124,-32,-131,-47,-175,-169,-171,-110,-103,-104,-123,-77,-121,-114,-131,-74,-100,-83,-112,-75,-239,-75,-91,-68,-59,-17,-105,-118]} 1. d4 {[%emt 0:08:48]} d5 {[%emt 0:02:10]} 2. Nf3 {[%emt 0:00:32]} Nf6 {[%emt 0:00:10]} 3. c4 {[%emt 0:00:03]} e6 {[%emt 0:00:21]} 4. Nc3 {[%emt 0:00:12]} dxc4 {[%emt 0:00:31]} 5. e3 {[%emt 0:00:06]} a6 {[%emt 0:00:39]} 6. a4 {[%emt 0:00:06]} c5 {[%emt 0:00:55]} 7. Bxc4 {[%emt 0:00:03][%cal Bf1c4,Bc4a2,Ba2b1][%mdl 32]} Nc6 {[%emt 0:10:50]} 8. O-O {[%emt 0:00:04]} cxd4 {[%emt 0:04:17]} 9. exd4 {[%emt 0:01:00]} Be7 {[%emt 0:03:20]} 10. Bg5 {[%emt 0:00:26]} O-O {[%emt 0:01:59]} 11. Ba2 {[%emt 0:03:26] D27: Queen's Gambit Accepted: Classical main line: 7 e4!? and 7 a4.} Nb4 {[%emt 0:05:36]} 12. Bb1 {[%emt 0:00:20]} b6 {[%emt 0:04:22]} 13. Ne5 {[%emt 0:01:16][%cal Oa4a5] The position is equal.} Bb7 {[%emt 0:01:27] [#]} 14. Ra3 $146 {[%emt 0:11:24]} ({Predecessor:} 14. Re1 Nbd5 15. Qd3 g6 16. Qh3 Nh5 17. Bxe7 Qxe7 18. Qg4 Ndf4 19. g3 f5 20. Qd1 {0-1 (30) Gorbatenko,K (2084)-Rysbayeva,N (2054) Dubna 2007}) 14... Rc8 {[%emt 0:05:55]} 15. Bxf6 {[%emt 0:24:36]} Bxf6 {[%emt 0:00:49]} 16. f4 {[%emt 0:15:01]} ({But not} 16. Qh5 g6 17. Qg4 Bg7 $17) (16. Be4 $11 Bxe4 17. Nxe4) 16... g6 $17 {[%emt 0:04:11]} 17. Qd2 {[%emt 0:05:03]} Bg7 {[%emt 0:03:26] This bishop pair is nice.} 18. Ne4 {[%emt 0:06:46]} Qe7 {[%emt 0:01:28]} 19. Rc3 {[%emt 0:00:28]} b5 {[%emt 0:00:30]} (19... f6 $17 20. Nc4 Rcd8) 20. a5 {[%emt 0:00:30]} (20. Rxc8 $15 Rxc8 21. Nc5) 20... Rfd8 {[%emt 0:01:46]} (20... f6 $17 21. Nf3 f5) 21. Rd1 {[%emt 0:00:19]} (21. Rxc8 $1 $15 Bxc8 22. Rc1) 21... Nc6 $19 {[%emt 0:05:59]} 22. Rd3 {[%emt 0:05:46] [#]} Qc7 {[%emt 0:11:07]} (22... Nxa5 $1 $19 {[%mdl 512]} 23. Nc5 Nc4) 23. Ng5 $17 {[%emt 0:01:49]} Nxe5 {[%emt 0:02:24]} ({Don't take} 23... Bxe5 24. fxe5 Nxe5 25. dxe5 Rxd3 26. Bxd3 $16 (26. Qxd3 Qc5+ 27. Kh1 Qxe5 $16)) 24. fxe5 {[%emt 0:03:13]} h6 {[%emt 0:00:30]} ({Better is} 24... Qe7 25. Rf1 f6 26. exf6 Bxf6) 25. Nf3 {[%emt 0:00:30]} Rd7 {[%emt 0:02:49]} 26. Qe1 {[%emt 0:04:23]} Rcd8 {[%emt 0:00:30]} ({Black should try} 26... Bf8 27. Rc3 Qxa5 28. Rxc8 Qxe1+ 29. Rxe1 Bxc8) 27. Rc1 {[%emt 0:00:30]} Qb8 {[%emt 0:00:30] Threatens to win with ...Bxf3.} 28. Qe3 {[%emt 0:00:30]} Qa7 {[%emt 0:00:30]} 29. Rf1 $2 {[%emt 0:00:30]} (29. Rcd1 $17) 29... Rc8 $2 {[%emt 0:02:18]} (29... Bxf3 $19 {has better winning chances.} 30. gxf3 Rxd4) 30. h4 {[%emt 0:05:06][%cal Oh4h5]} Rc4 {[%emt 0:00:30] White must now prevent ...Bxf3.} 31. b3 {[%emt 0:01:03]} Rc8 {[%emt 0:00:39]} 32. Rfd1 {[%emt 0:00:12]} (32. h5 $1 $11 {remains equal.}) 32... h5 {[%emt 0:02:10][%mdl 32768] Weighted Error Value: White=0.43/Black=0.30. Loss on time!?} 1-0

[Event "Silver Lake Festival 2022"]
[Site "Veliko Gradiste"]
[Date "2022.06.24"]
[Round "7.12"]
[White "Shoshin, Kirill"]
[Black "Efremov, Vladislav"]
[Result "1/2-1/2"]
[ECO "A23"]
[WhiteElo "1938"]
[BlackElo "2125"]
[Annotator "TA"]
[PlyCount "33"]
[EventDate "2022.06.16"]
[EventType "swiss"]
[EventCountry "SRB"]
[SourceTitle "playchess.com"]
[Source "ChessBase"]
[SourceQuality "1"]
[TimeControl "5400+30"]

{[%evp 15,33,14,20,14,10,8,27,0,22,25,26,17,17,12,8,0,0,0,56,62]} 1. c4 {[%emt 0:00:10]} e5 {[%emt 0:01:04]} 2. Nc3 {[%emt 0:00:15]} Nf6 {[%emt 0:00:53]} 3. g3 {[%emt 0:00:11]} Bc5 {[%emt 0:01:23]} 4. Bg2 {[%emt 0:01:25]} c6 {[%emt 0:00:43]} 5. e3 {[%emt 0:06:30]} O-O {[%emt 0:05:16]} 6. d4 {[%emt 0:03:33]} exd4 {[%emt 0:00:44]} 7. exd4 {[%emt 0:00:02]} Bb4 {[%emt 0:00:59]} 8. Nge2 {[%emt 0:11:54][%cal Bg1e2,Be2f4,Bf4h5][%mdl 32]} d5 {[%emt 0:01:33]} 9. cxd5 {[%emt 0:01:48] A23: English Opening: 1...e5 2 Nc3 Nf6 3 g3 c6.} Nxd5 {[%emt 0:03:05]} 10. O-O {[%emt 0:00:20]} Be6 {[%emt 0:03:20]} 11. a3 {[%emt 0:02:40] White has an edge.} Be7 {[%emt 0:16:02]} 12. Nf4 {[%emt 0:11:43] [#]} Nxc3 $146 {[%emt 0:09:01]} ({Predecessor:} 12... Nxf4 13. Bxf4 Qb6 14. d5 Rd8 15. Qe2 cxd5 16. Nxd5 Bxd5 17. Qxe7 Nc6 18. Qc7 Qxc7 19. Bxc7 Bxg2 20. Kxg2 {½-½ (48) Stegemann,N (1983)-Fischbauer,E (1689) Muensterland 2005}) 13. bxc3 {[%emt 0:02:43]} Bc4 {[%emt 0:01:04]} 14. Re1 {[%emt 0:00:09]} Nd7 {[%emt 0:03:42]} 15. Rb1 {[%emt 0:05:19]} Nb6 {[%emt 0:08:14]} 16. Qg4 {[%emt 0:08:55]} Bf6 {[%emt 0:08:27]} ({Black should try} 16... Bd6 $11) 17. Nh5 {[%emt 0:13:23] Weighted Error Value: White=0.06 (flawless) /Black=0.14 (very precise)} 1/2-1/2

[Event "Silver Lake Festival 2022"]
[Site "Veliko Gradiste"]
[Date "2022.06.25"]
[Round "8.1"]
[White "Krstulovic, Alex"]
[Black "Song, Raymond"]
[Result "1-0"]
[ECO "D02"]
[WhiteElo "2413"]
[BlackElo "2485"]
[Annotator "TA"]
[PlyCount "73"]
[EventDate "2022.06.16"]
[EventType "swiss"]
[EventCountry "SRB"]
[SourceTitle "playchess.com"]
[Source "ChessBase"]
[SourceQuality "1"]
[TimeControl "5400+30"]

{[%evp 12,73,8,9,7,0,11,6,10,3,31,3,67,59,72,57,54,56,60,45,54,54,77,76,84,82,77,81,88,60,60,51,71,48,30,37,29,33,30,38,40,0,4,6,62,47,86,83,87,72,79,86,865,957,941,916,820,810,5060,5060,29992,29993,29993,29994]} 1. d4 {[%emt 0:00:19]} Nf6 {[%emt 0:00:04]} 2. Nf3 {[%emt 0:00:06]} d5 {[%emt 0:00:04]} 3. Bf4 {[%emt 0:00:05]} c5 {[%emt 0:00:09]} 4. e3 {[%emt 0:00:04]} Nc6 {[%emt 0:00:15]} 5. Nbd2 {[%emt 0:00:06]} e6 {[%emt 0:00:14]} 6. c3 {[%emt 0:00:05]} Be7 {[%emt 0:00:04] 6...cxd4 gains popularity.} 7. Ne5 {[%emt 0:00:39]} Nd7 {[%emt 0:00:34] D02: 1 d4 d5 2 Nf3 sidelines, including 2...Nf6 3 g3 and 2...Nf6 3 Bf4.} 8. Nxd7 {[%emt 0:00:08]} Bxd7 {[%emt 0:00:13]} 9. Be2 {[%emt 0:00:30] [#]} O-O $146 {[%emt 0:04:04] The position is equal.} ({Predecessor:} 9... Qb6 10. Qb3 O-O 11. O-O Rfc8 12. Rac1 Na5 13. Qxb6 axb6 14. a3 Ba4 15. h3 h6 {½-½ (27) Zilka,S (2608)-Holm,K (2464) Warsaw 2021}) 10. O-O {[%emt 0:00:08]} Qb6 {[%emt 0:04:01]} 11. Rb1 {[%emt 0:00:46]} e5 {[%emt 0:08:07]} ({Black should play} 11... cxd4 $11 12. exd4 g5) 12. dxe5 $14 {[%emt 0:10:19][%cal Od2c4]} ({Much worse is} 12. Bxe5 $6 Nxe5 13. dxe5 Bf5 $11) 12... Bf5 {[%emt 0:00:10]} 13. e4 {[%emt 0:05:31]} dxe4 {[%emt 0:00:05]} 14. Nc4 {[%emt 0:43:24][%cal Bd2c4,Bc4e3,Be3d5][%mdl 32]} Qc7 {[%emt 0:02:11]} 15. Ne3 {[%emt 0:06:23]} Rad8 {[%emt 0:01:09]} 16. Qa4 {[%emt 0:01:37]} Bg6 {[%emt 0:00:42]} 17. Rbd1 {[%emt 0:02:18] Black must now prevent Nd5.} Nxe5 {[%emt 0:39:03][%cal Oe5f3]} 18. Nd5 {[%emt 0:00:10]} Qd6 {[%emt 0:02:18]} 19. Qxa7 {[%emt 0:01:04] White is more active.} Qe6 {[%emt 0:01:08]} 20. Nxe7+ {[%emt 0:17:35]} (20. Qxb7 {seems wilder.} Bd6 21. Bg3 Rb8 22. Qa6) 20... Qxe7 {[%emt 0:02:31]} 21. Bxe5 {[%emt 0:03:20]} Qxe5 {[%emt 0:00:05]} 22. Qxb7 {[%emt 0:06:53]} Rb8 {[%emt 0:01:46][%cal Bd8b8,Bb8b2,Bb2c2][%mdl 32]} 23. Qd5 {[%emt 0:00:00]} Qxd5 {[%emt 0:00:04]} 24. Rxd5 {[%emt 0:00:00] Threatens to win with Rd2.} Rxb2 {[%emt 0:00:05]} 25. Bc4 {[%emt 0:00:00]} Rc8 {[%emt 0:03:46]} 26. Rfd1 {[%emt 0:00:00] [#] White wants to mate with Rd8+.} Kf8 $1 {[%emt 0:00:37]} 27. h4 {[%emt 0:00:00][%cal Bh2h4,Bh4h5][%mdl 32] Hoping for h5.} e3 {[%emt 0:04:59]} (27... f6 $11) 28. fxe3 {[%emt 0:00:00]} Rc2 {[%emt 0:00:27]} 29. h5 $36 {[%emt 0:00:01][%mdl 2048] White has strong initiative.} Be4 {[%emt 0:01:45] [#]} 30. Rd7 {[%emt 0:00:26]} Rxg2+ {[%emt 0:05:25]} 31. Kf1 {[%emt 0:00:04]} Bc6 $2 {[%emt 0:00:21][%mdl 8192] Loses the game.} (31... Rb8 $16) 32. Rxf7+ $18 {[%emt 0:00:25]} Ke8 {[%emt 0:00:01]} 33. h6 {[%emt 0:02:35]} gxh6 {[%emt 0:05:02]} 34. Rxh7 {[%emt 0:00:02] Rh8+ would kill now.} Ra8 {[%emt 0:01:03]} 35. Rd6 {[%emt 0:01:41]} Bf3 {[%emt 0:00:46]} 36. Re6+ {[%emt 0:00:05]} Kd8 {[%emt 0:00:03]} 37. Rf6 {[%emt 0:00:04] Weighted Error Value: White=0.06 (flawless) /Black=0.40} 1-0

[Event "Silver Lake Festival 2022"]
[Site "Veliko Gradiste"]
[Date "2022.06.25"]
[Round "8.2"]
[White "Damljanovic, Branko"]
[Black "Mohammad Nubairshah Shaikh"]
[Result "1/2-1/2"]
[ECO "B10"]
[WhiteElo "2469"]
[BlackElo "2443"]
[Annotator "TA"]
[PlyCount "105"]
[EventDate "2022.06.16"]
[EventType "swiss"]
[EventCountry "SRB"]
[SourceTitle "playchess.com"]
[Source "ChessBase"]
[SourceQuality "1"]
[TimeControl "5400+30"]

{[%evp 18,105,8,16,16,4,11,0,6,10,4,-44,-37,-74,-23,-18,0,8,0,2,40,45,39,42,50,48,139,127,150,88,93,93,158,116,204,203,167,147,154,97,151,57,61,66,72,61,65,68,84,61,83,89,125,106,133,88,92,0,0,0,0,0,0,0,0,0,8,0,0,0,0,0,0,0,0,0,0,0,0,0,0,0,0,0,0,0,0,0,0,0]} 1. c4 {[%emt 0:04:37]} c6 {[%emt 0:03:01]} 2. e4 {[%emt 0:03:18]} d5 {[%emt 0:00:02]} 3. exd5 {[%emt 0:00:06]} cxd5 {[%emt 0:00:03]} 4. cxd5 {[%emt 0:00:06]} Nf6 {[%emt 0:00:03]} 5. Nc3 {[%emt 0:00:28]} Nxd5 {[%emt 0:00:03]} 6. Nf3 {[%emt 0:00:08]} Nc6 {[%emt 0:00:11]} 7. Bb5 {[%emt 0:00:02]} e6 {[%emt 0:00:18]} 8. O-O {[%emt 0:00:04]} Be7 {[%emt 0:00:12]} 9. d4 {[%emt 0:00:03]} O-O {[%emt 0:00:05]} 10. Re1 {[%emt 0:00:07]} Qd6 {[%emt 0:00:18] B10: Caro-Kann: 2 d3 and 2 c4.} 11. a3 {[%emt 0:05:46]} Rd8 {[%emt 0:00:10]} 12. Qc2 {[%emt 0:00:53]} Bd7 {[%emt 0:16:46]} 13. Bd3 {[%emt 0:05:59]} h6 {[%emt 0:05:24] [#]} 14. Re4 $146 {[%emt 0:10:56]} (14. Nxd5 $11 {was preferrable.} exd5 15. Be3) ({Predecessor:} 14. Bd2 Rac8 15. Nxd5 exd5 16. Bc3 Bg4 17. Ne5 Nxe5 18. dxe5 Qb6 19. Qa4 Bd7 20. Qf4 {0-1 (58) Arutinian,D (2575)-Deviatkin,A (2566) Canberra 2011}) 14... Rac8 {[%emt 0:09:40]} 15. Bd2 {[%emt 0:04:02]} a6 {[%emt 0:23:40]} (15... f5 $17 16. Re2 Bf6) 16. Rae1 {[%emt 0:04:37]} f5 {[%emt 0:05:09]} 17. R4e2 {[%emt 0:04:54]} Bf6 {[%emt 0:00:04]} 18. Bxf5 {[%emt 0:18:32][%cal Re2e6]} exf5 {[%emt 0:10:33]} 19. Qb3 $1 {[%emt 0:02:55][%csl LRb7,LRd5]} Nxd4 {[%emt 0:06:04]} 20. Nxd4 {[%emt 0:01:02]} Bxd4 {[%emt 0:00:06]} 21. Nxd5 {[%emt 0:01:33][%cal Bc3d5,Bd5e7,Be7g6][%mdl 32] Strongly threatening Bb4.} Kh8 {[%emt 0:01:29]} (21... Kh7 $1 $14 22. Ne7 Rb8) 22. Ne7 $1 $16 {[%emt 0:04:39]} Ra8 {[%emt 0:02:11]} 23. Bc3 {[%emt 0:01:23]} ({Don't do} 23. Qxb7 Rab8 24. Qf3 Bb5 $16) (23. Ba5 $142 $1) 23... Bxc3 {[%emt 0:03:33]} 24. Qxc3 {[%emt 0:01:19]} a5 {[%emt 0:02:37]} (24... Bc6 $142) 25. h4 {[%emt 0:00:31] Rd2 is the strong threat.} Qf6 {[%emt 0:05:57]} (25... Bc6 $16) 26. Qxf6 $18 {[%emt 0:00:58]} gxf6 {[%emt 0:00:01]} 27. Ng6+ {[%emt 0:00:27]} Kg8 {[%emt 0:00:36]} 28. Rd2 {[%emt 0:10:57]} (28. Kh2 $142) 28... Kf7 {[%emt 0:04:20] [#]} ({Black should try} 28... Ba4 29. Rde2 Ra6) 29. h5 {[%emt 0:00:23] White is much more active.} ({White should play} 29. Nh8+ $1 $16 {[%mdl 512]} Kf8 30. Red1) 29... Be6 $1 $14 {[%emt 0:00:32]} 30. Rde2 {[%emt 0:00:03]} Rd6 {[%emt 0:01:12]} 31. Kh2 {[%emt 0:00:32]} Re8 {[%emt 0:00:43]} 32. f3 {[%emt 0:01:18]} b5 {[%emt 0:00:39]} 33. Kg3 {[%emt 0:03:12]} Rc8 {[%emt 0:00:10]} 34. Nf4 {[%emt 0:03:11]} Bd7 {[%emt 0:00:07]} 35. Re7+ {[%emt 0:01:18]} Kg8 {[%emt 0:00:01]} 36. R1e3 {[%emt 0:02:31]} Rc4 {[%emt 0:00:41][%cal Oc4f4]} 37. b3 {[%emt 0:00:27]} (37. Rd3 $16 Rxd3 38. Nxd3) 37... Rxf4 $1 $11 {[%emt 0:00:29] The position is equal.} 38. Rxd7 $1 {[%emt 0:00:49][%cal Re3e8]} (38. Kxf4 $2 {too greedy.} Rd4+ 39. Kg3 f4+ 40. Kf2 fxe3+ $19) 38... Rxf3+ $1 {[%emt 0:00:40]} 39. Rxf3 {[%emt 0:00:10]} Rxd7 {[%emt 0:00:03]} 40. Rxf5 {[%emt 0:00:08][%mdl 4096] Endgame KR-KR} Rd3+ {[%emt 0:00:11]} 41. Rf3 {[%emt 0:00:01]} Rd6 {[%emt 0:00:44]} 42. Kf4 {[%emt 0:05:48]} Kf7 {[%emt 0:00:03]} 43. Ke4 {[%emt 0:00:15]} Re6+ {[%emt 0:00:35]} 44. Kd4 {[%emt 0:00:06]} Re5 {[%emt 0:00:06] Against Rf5} 45. g4 {[%emt 0:00:09]} Rg5 {[%emt 0:00:24]} 46. Rf4 {[%emt 0:00:08]} Ke6 {[%emt 0:00:11]} 47. b4 {[%emt 0:01:32]} axb4 {[%emt 0:02:05]} 48. axb4 {[%emt 0:00:01]} Rd5+ {[%emt 0:00:01]} 49. Ke4 {[%emt 0:00:02][%cal Of4f6] White wants to mate with Rxf6+!} Re5+ {[%emt 0:01:11]} 50. Kd4 {[%emt 0:00:01]} Rd5+ {[%emt 0:00:05]} 51. Ke4 {[%emt 0:00:07][%cal Of4f6] Rxf6+! would kill now.} Re5+ {[%emt 0:00:01]} 52. Kd4 {[%emt 0:00:06]} Rd5+ {[%emt 0:00:02]} 53. Ke4 {[%emt 0:01:28] Weighted Error Value: White=0.13 (very precise) /Black=0.12 (very precise)} 1/2-1/2

[Event "Silver Lake Festival 2022"]
[Site "Veliko Gradiste"]
[Date "2022.06.25"]
[Round "8.3"]
[White "Strikovic, Aleksa"]
[Black "Anuj Shrivatri"]
[Result "1/2-1/2"]
[ECO "A65"]
[WhiteElo "2502"]
[BlackElo "2356"]
[Annotator "TA"]
[PlyCount "158"]
[EventDate "2022.06.16"]
[EventType "swiss"]
[EventCountry "SRB"]
[SourceTitle "playchess.com"]
[Source "ChessBase"]
[SourceQuality "1"]
[TimeControl "5400+30"]

{[%evp 24,158,29,-27,-18,-38,-45,-31,-53,-50,-38,-103,-114,-108,-41,-60,57,55,51,54,50,49,51,60,56,0,8,0,12,19,12,0,0,0,0,0,0,0,0,0,8,11,41,44,39,39,40,43,40,32,52,52,51,36,36,36,36,36,36,36,36,36,36,8,27,14,15,8,8,6,8,8,13,0,14,0,10,0,0,0,0,-46,-19,-90,-97,-119,-85,-179,-155,-187,-164,-160,-111,-150,-120,-144,-139,-138,-132,-129,-122,-122,0,-116,-115,-159,-141,-141,-139,-193,-171,-258,-68,-69,0,-208,0,-66,0,0,0,0,0,0,0,0,0,0,0,-8,0,-8,0,0,0,0,0]} 1. c4 Nf6 2. Nc3 g6 3. e4 {[%emt 0:01:03]} Bg7 {[%emt 1:32:00]} 4. d4 d6 {[%emt 0:00:00]} 5. f3 {[%emt 0:00:18]} O-O {[%emt 0:01:00]} 6. Bg5 c5 7. d5 h6 8. Be3 e6 9. Qd2 exd5 10. cxd5 a6 11. a4 Nbd7 12. Nge2 Re8 13. Nc1 {[#]} (13. Nd1 $142) 13... Nxe4 $1 $11 {A65: Modern Benoni: 6 e4.} 14. fxe4 (14. Nxe4 Qe7) 14... Bxc3 15. Qxc3 Qh4+ $1 {Black is slightly better.} 16. Bf2 Qxe4+ {[#]} 17. Be2 $146 (17. Ne2 $15) ({Predecessor:} 17. Ne2 Nb6 18. Qf3 Qc4 19. Qc3 Qxd5 20. a5 Nc4 21. Rd1 Qe4 22. Qd3 Qg4 23. h3 {0-1 (49) Lautenbach,W (2230)-Morley,P (2272) ICCF email 2011}) 17... Qxg2 $17 18. Rg1 Qe4 ({Inferior is} 18... Qxh2 19. Qg3 Qxg3 20. Bxg3 $15) (18... Qxd5 $17 {White must now prevent ...Ne5.} 19. Qd2 Qf5) 19. Qd3 $15 Qe5 {[#]} ({Black should play} 19... Qe7 $15) 20. Rxg6+ $1 $14 fxg6 21. Qxg6+ Kf8 $1 22. Bg3 {The board is on fire.} Qf6 23. Bxd6+ Re7 $1 24. Qxf6+ ({Much weaker is} 24. Bxe7+ Kxe7 25. Qe4+ Qe5 26. Qh7+ Kd6 $11) (24. Qg3 $14 Ne5 25. Bxc5) 24... Nxf6 $11 25. Bxc5 Ke8 26. Bxe7 Kxe7 27. Bf3 Kd6 28. Ne2 Bg4 29. Ra3 Re8 30. Bxg4 Nxg4 {[%mdl 4096] Endgame KRN-KRN} 31. Rh3 Kxd5 32. Rh4 Ne5 33. Nc3+ Kc6 34. Rxh6+ Kc5 35. Kd2 Nf3+ 36. Kc2 Kc4 37. b3+ Kd4 38. Rd6+ Kc5 39. Rd5+ Kc6 40. Rh5 Rg8 41. Kd3 Rd8+ 42. Ke3 Nd4 43. Rh6+ Kc7 {Strongly threatening ...Nf5+.} (43... Kc5 $5 {[%cal Rd4f5]} 44. Ne4+ Kb4 45. Rb6+ Ka3 $14) 44. Ke4 {Prevents Nf5.} Nxb3 45. Nd5+ Kb8 46. Ke5 Re8+ 47. Kf4 Nc5 48. Nb6 Kc7 49. a5 Nb3 50. Nc4 Rd8 51. Rh7+ Kc6 {aiming for ...Rd4+.} 52. Ke3 (52. Ne5+ $11 Kd5 53. Ng6) 52... Kb5 53. Rh4 (53. Nb2 $11 {keeps the balance.} Nxa5 54. h4) 53... Nxa5 $17 54. Nd2 Nc6 55. Nb1 (55. Rg4 $17) 55... Re8+ 56. Kd3 Nb4+ 57. Kc3 Re3+ (57... a5 $142 58. Na3+ Kc5 59. Rc4+ Kb6) 58. Kb2 Nd5 59. Na3+ Kc5 60. Rc4+ Kd6 {[%emt 0:00:00]} 61. Rh4 {[%emt 0:27:52]} Re2+ {[%emt 0:00:00]} 62. Kb3 {[%emt 0:00:30]} Re3+ {[%emt 0:00:00]} 63. Kb2 $1 {[%emt 0:00:30] Threatens to win with Nc4+.} Rf3 {[%emt 0:00:00]} 64. Rh7 {[%emt 0:00:30]} b5 {[%emt 0:00:00]} 65. Rh6+ {[%emt 0:00:30]} Nf6 $1 {[%emt 0:00:00]} 66. Rh8 {[%emt 0:00:30]} (66. h4 $17) 66... Kc5 $19 {[%emt 0:00:00]} 67. Rf8 {[%emt 0:00:30] [#]} (67. Ra8 {was worth a try.}) 67... Rf2+ $2 {[%emt 0:00:00]} (67... Kb4 $1 $19 {...Rb3+ is the strong threat.} 68. Nc2+ Ka4) 68. Kb3 {[%emt 0:00:30]} Rf3+ {[%emt 0:00:00]} (68... Rf4 $15 69. Nc2 a5) 69. Kb2 $1 {[%emt 0:00:30] [#]} Rf2+ {[%emt 0:00:00]} ({Black should try} 69... Kb4 $1 $19 {Hoping for ...Rb3+.} 70. Nc2+ Ka4) 70. Kb3 $1 $15 {[%emt 0:00:30]} Ne4 {[%emt 0:00:00]} ({Better is} 70... Rf4 $15 71. Nc2 a5) 71. Rxf2 $11 {[%emt 0:00:30] The position is equal.} Nxf2 {[%emt 0:00:00] KN-KN} 72. h4 {[%emt 0:00:30]} a5 {[%emt 0:00:00]} 73. Nc2 {[%emt 0:00:30]} Ng4 {[%emt 0:00:00]} 74. h5 {[%emt 0:00:30]} Nh6 {[%emt 0:00:00]} (74... Nf6 $5 75. h6 Kd5 $11) 75. Ne3 {[%emt 0:00:30]} Kd6 {[%emt 0:00:00]} 76. Kc3 {[%emt 0:00:30]} Kc5 {[%emt 0:00:00]} 77. Kb3 {[%emt 0:00:30]} a4+ {[%emt 0:00:00]} 78. Ka3 {[%emt 0:00:30]} Kd4 {[%emt 0:00:00]} 79. Nd1 {[%emt 0:00:30]} Kc5 {[%emt 0:00:00] And White is the lucky defender.  Weighted Error Value: White=0.15 (very precise) /Black=0.14 (very precise)} 1/2-1/2

[Event "Silver Lake Festival 2022"]
[Site "Veliko Gradiste"]
[Date "2022.06.25"]
[Round "8.4"]
[White "Stremavicius, Titas"]
[Black "Radovanovic, Nikola"]
[Result "1/2-1/2"]
[ECO "A21"]
[WhiteElo "2508"]
[BlackElo "2423"]
[Annotator "TA"]
[PlyCount "68"]
[EventDate "2022.06.16"]
[EventType "swiss"]
[EventCountry "SRB"]
[SourceTitle "playchess.com"]
[Source "ChessBase"]
[SourceQuality "1"]
[TimeControl "5400+30"]

{[%evp 9,68,16,27,29,19,21,16,34,24,31,29,21,33,17,35,0,0,0,0,0,0,0,4,-8,19,41,34,37,26,34,20,12,31,0,0,4,5,0,0,0,0,0,0,-16,-16,-25,0,0,0,-8,-15,-21,-31,-27,-14,-14,-14,-14,-14,-28,-16]} 1. c4 {[%emt 0:02:07]} e5 {[%emt 0:00:08]} 2. Nc3 {[%emt 0:00:13]} Bb4 {[%emt 0:00:10]} 3. Nd5 {[%emt 0:00:40]} Bc5 {[%emt 0:00:11]} 4. e3 {[%emt 0:00:09]} Nf6 {[%emt 0:00:32]} 5. b4 {[%emt 0:01:16]} Nxd5 {[%emt 0:00:29]} 6. bxc5 {[%emt 0:00:12] A21: English Opening: 1...e5 2 Nc3.} Nf6 {[%emt 0:00:12]} 7. Bb2 {[%emt 0:00:46]} Qe7 {[%emt 0:03:14]} 8. Nf3 {[%emt 0:00:07][%cal Bg1f3,Bf3d4,Bd4b5][%mdl 32] The position is equal.} Nc6 {[%emt 0:07:00]} 9. d4 {[%emt 0:03:39]} exd4 {[%emt 0:02:45]} 10. Nxd4 {[%emt 0:00:05] Black should prevent Nf5.} ({Of course not} 10. Bxd4 Nxd4 11. Qxd4 b6 $15) 10... O-O {[%emt 0:10:23]} 11. Nb5 {[%emt 0:10:38] [#]} Ne8 $146 {[%emt 0:08:44]} ({Predecessor:} 11... Qxc5 12. Bxf6 gxf6 13. Be2 d6 14. Nc3 Ne7 15. O-O c6 16. Ne4 Qe5 17. Bd3 f5 {½-½ (27) Almeraya,E (2273)-Petriv,V (2200) LSS email 2019}) 12. Qb3 {[%emt 0:09:14]} Qxc5 {[%emt 0:04:50]} 13. Be2 {[%emt 0:08:48]} d6 {[%emt 0:03:59]} 14. O-O {[%emt 0:01:08]} Qg5 {[%emt 0:11:56]} 15. f4 {[%emt 0:04:27]} Qe7 {[%emt 0:02:09]} 16. Bf3 {[%emt 0:00:09]} Bf5 {[%emt 0:08:20]} 17. Rfe1 {[%emt 0:12:58]} Be4 {[%emt 0:05:56]} 18. Bxe4 $1 {[%emt 0:00:09]} Qxe4 {[%emt 0:00:05]} 19. Nc3 {[%emt 0:00:05][%csl LRb7,LRe4]} Qg6 {[%emt 0:01:56]} 20. e4 {[%emt 0:08:07]} Rb8 {[%emt 0:10:38]} 21. f5 {[%emt 0:00:42]} Qg5 {[%emt 0:00:58]} 22. Nd5 {[%emt 0:00:29]} Ne5 {[%emt 0:05:49]} 23. Bxe5 {[%emt 0:04:13]} dxe5 {[%emt 0:00:11]} 24. Qc3 {[%emt 0:00:59]} c6 {[%emt 0:02:20]} 25. Qxe5 {[%emt 0:00:09]} Nf6 {[%emt 0:00:40][%cal Be8f6,Bf6d7,Bd7c5][%mdl 32]} 26. Qf4 {[%emt 0:07:14]} Qxf4 {[%emt 0:00:36]} 27. Nxf4 {[%emt 0:00:03]} Nd7 {[%emt 0:02:14]} 28. e5 {[%emt 0:03:30]} Nc5 {[%emt 0:00:43]} 29. g3 {[%emt 0:02:56]} Rfe8 {[%emt 0:01:41]} 30. Rad1 {[%emt 0:06:13]} Rbd8 {[%emt 0:00:20]} 31. Rxd8 {[%emt 0:01:01]} Rxd8 {[%emt 0:00:06]} 32. e6 {[%emt 0:00:06]} fxe6 {[%emt 0:00:49]} 33. fxe6 {[%emt 0:00:21]} Re8 {[%emt 0:01:16]} 34. Re5 {[%emt 0:00:11]} b6 {[%emt 0:00:57] Weighted Error Value: White=0.05 (flawless) /Black=0.03 (flawless)} 1/2-1/2